[Event "17th Paracin Open 2024"]
[Site "Paracin"]
[Date "2024.07.08"]
[Round "6.10"]
[White "Atalik, Suat"]
[Black "Tippa, Aswath Srisai"]
[Result "0-1"]
[ECO "D35"]
[WhiteElo "2450"]
[BlackElo "1647"]
[Annotator "TA"]
[PlyCount "98"]
[EventDate "2024.07.02"]
[EventType "swiss"]
[EventCountry "SRB"]
[SourceTitle "playchess.com"]
[Source "ChessBase"]
[SourceQuality "1"]
[TimeControl "5400+30"]

{[%evp 12,98,29,34,37,30,36,22,29,35,32,31,24,22,24,10,0,-18,0,0,0,-23,-8,-23,-12,-41,0,-43,-33,-67,-37,-41,-44,-48,-27,-39,-16,-42,-37,-27,-27,-29,-26,-38,-17,-33,0,-37,0,-42,-47,-57,-54,-43,-34,-46,-36,-51,-51,-44,-51,-53,-51,-56,-51,-162,-160,-348,-376,-375,-376,-312,-116,-112,0,0,0,0,0,-29987,-29988,-29992,-29993,-29993,-29993,-29996,-29997,-29997,-29998]} 1. d4 {[%emt 0:00:03]} d5 {[%emt 0:02:03]} 2. c4 {[%emt 0:00:20]} e6 {[%emt 0:00:16]} 3. Nc3 {[%emt 0:00:21]} Nf6 {[%emt 0:00:11]} 4. cxd5 {[%emt 0:00:28]} exd5 {[%emt 0:00:14]} 5. Bg5 {[%emt 0:00:24][%cal Bc1g5,Bg5h4,Bh4g3][%mdl 32]} Bb4 {[%emt 0:00:21]} 6. e3 {[%emt 0:00:40]} h6 {[%emt 0:00:14]} 7. Bh4 {[%emt 0:00:34]} g5 {[%emt 0:00:16]} 8. Bg3 {[%emt 0:00:09]} Ne4 {[%emt 0:00:13]} 9. Qc2 {[%emt 0:01:00]} h5 {[%emt 0:00:14] The position is equal.} 10. f3 {[%emt 0:00:33]} Nxg3 {[%emt 0:00:13]} 11. hxg3 {[%emt 0:00:06]} Nc6 {[%emt 0:00:36]} 12. a3 {[%emt 0:08:36]} Bxc3+ {[%emt 0:00:10]} 13. Qxc3 {[%emt 0:00:20]} Qd6 {[%emt 0:00:14]} 14. f4 {[%emt 0:07:06]} g4 {[%emt 0:03:42]} 15. Bb5 {[%emt 0:06:43]} Bd7 {[%emt 0:03:16]} 16. Bxc6 {[%emt 0:00:17]} Bxc6 {[%emt 0:00:49]} 17. Ne2 {[%emt 0:01:34]} O-O-O {[%emt 0:00:38]} 18. Kf2 {[%emt 0:00:59]} Rde8 {[%emt 0:13:51]} 19. Rac1 {[%emt 0:04:06]} Kb8 {[%emt 0:18:33]} 20. Qc5 {[%emt 0:05:54] Repels Bb5} Qf6 {[%emt 0:08:23]} 21. Rc3 {[%emt 1:00:47]} Re6 22. a4 {[%emt 0:00:00]} Qd8 {[%emt 0:11:40]} (22... Bxa4 23. Qxc7+ Ka8 24. Qc8+ Rxc8 25. Rxc8#) 23. Qa3 {[%emt 0:00:00]} a6 {[%emt 0:02:37]} 24. Rh4 {[%emt 0:00:00]} Qe8 {[%emt 0:00:53]} 25. b3 {[%emt 0:00:00]} Rhh6 {[%emt 0:16:52]} 26. Qc1 {[%emt 0:00:00]} Re7 {[%emt 0:00:30]} 27. Qc2 {[%emt 0:00:00]} Re4 {[%emt 0:02:51]} 28. Qd2 {[%emt 0:00:00]} Bd7 {[%emt 0:04:26]} 29. Nc1 {[%emt 0:00:00][%cal Be2c1,Bc1d3,Bd3e5][%mdl 32] White is weak on the light squares} Bf5 {[%emt 0:00:32]} 30. Nd3 {[%emt 0:00:00]} Re7 {[%emt 0:00:11]} 31. Ne5 {[%emt 0:00:00]} Rh8 {[%emt 0:03:07]} 32. Rc5 {[%emt 0:00:00]} f6 {[%emt 0:00:07]} 33. Nd3 {[%emt 0:00:00]} Be4 {[%emt 0:00:15]} 34. Rc3 {[%emt 0:00:00]} Bxd3 {[%emt 0:02:24]} 35. Qxd3 {[%emt 0:00:00]} Re4 {[%emt 0:00:31]} 36. Qc2 {[%emt 0:00:00][%cal Ob3b4]} Rh7 {[%emt 0:00:21] ...Rhe7 would now be deadly.} 37. Rh1 {[%emt 0:00:00]} Rhe7 {[%emt 0:00:40] Threatens to win with ...h4.} 38. Qd2 {[%emt 0:00:00] [#]} (38. Rc1 $15 c6 (38... Rxe3 39. Rxe3 Rxe3 40. Qxc7+ Ka7 41. Qc5+ Kb8 42. a5 $11) 39. Qd2) 38... c5 $1 $19 {[%emt 0:00:39]} 39. Rxc5 {[%emt 0:00:00]} (39. Rhc1 $17 {was the only chance.}) 39... Rxe3 {[%emt 0:00:06] ( -> ...Re2+)} 40. Rc2 {[%emt 0:00:00]} Rxb3 {[%emt 0:01:43][%cal Oe7e3]} 41. Qa5 {[%emt 0:01:12][%cal Oh1c1]} Rbe3 $2 {[%emt 0:03:04]} (41... h4 $19 {and Black stays clearly on top.} 42. Rxh4 Rb1) 42. Qxd5 {[%emt 0:05:43]} Qxa4 $40 {[%emt 0:02:29][%mdl 128] Black is up to no good.} (42... Re2+ $17 43. Rxe2 Rxe2+ 44. Kg1 Rc2 (44... Qxa4 45. Qd6+ Ka8 46. Rxh5 $15) (44... Qe3+ 45. Kh2 $15)) 43. Rhc1 $11 {[%emt 0:01:22]} Re8 {[%emt 0:00:49] Dodges Rc8+. Strongly threatening ...Qa3. The board is on fire.} 44. Qd6+ {[%emt 0:00:17]} Ka7 {[%emt 0:00:04]} 45. Qxf6 {[%emt 0:00:56][%mdl 8192] [#]} (45. Qc5+ $11 Kb8 (45... Ka8 46. Qb6 $11) 46. Qd6+ Ka7 47. Qc5+ Kb8 (47... Ka8 48. Qb6 $11) 48. Qd6+) 45... h4 $1 {[%emt 0:00:14][%mdl 512] Black mates.} 46. Qxh4 {[%emt 0:02:12]} (46. Qf5 hxg3+) 46... Qxd4 {[%emt 0:00:06][%csl Ge8][%cal Re3e1]} 47. Kf1 {[%emt 0:00:12]} Qd3+ {[%emt 0:00:09]} 48. Kg1 {[%emt 0:00:35]} Re1+ {[%emt 0:00:07]} (48... Rxg3 $2 49. Rf2 $17) 49. Kh2 {[%emt 0:00:35]} Qf1 {[%emt 0:00:10] Weighted Error Value: White=0.23 (precise) /Black=0.17 (very precise) .  Loses game:     	White=2     	---        Missed win:     	---       	Black=1      Mistake:       	White=1     	Black=1      Inaccurate:     	White=6     	Black=4      OK:         	White=13    	Black=12     Best:        	White=1     	Black=3      Strong:       	---       	Black=1      Brilliant:      	---       	Black=1} 0-1

[Event "17th Paracin Open 2024"]
[Site "Paracin"]
[Date "2024.07.08"]
[Round "6.11"]
[White "Ben Ari, Yannay"]
[Black "Dvalishvili, Pavel S."]
[Result "1/2-1/2"]
[ECO "A04"]
[WhiteElo "2443"]
[BlackElo "2366"]
[Annotator "TA"]
[PlyCount "65"]
[EventDate "2024.07.02"]
[EventType "swiss"]
[EventCountry "SRB"]
[SourceTitle "playchess.com"]
[Source "ChessBase"]
[SourceQuality "1"]
[TimeControl "5400+30"]

{[%evp 11,65,0,0,5,0,0,0,0,0,-5,0,-29,-20,-22,-4,-42,-36,-58,0,19,23,12,21,23,71,74,68,62,40,24,59,31,31,39,45,40,77,0,0,0,-4,-14,11,6,12,6,6,0,0,0,35,27,27,8,7,7]} 1. g3 {[%emt 0:02:05]} c5 {[%emt 0:01:29]} 2. Bg2 {[%emt 0:02:02]} Nc6 {[%emt 0:00:25]} 3. Nf3 {[%emt 0:03:02]} g6 {[%emt 0:01:16]} 4. O-O {[%emt 0:06:54]} Bg7 {[%emt 0:00:39]} 5. d3 {[%emt 0:03:43]} d6 {[%emt 0:02:45]} 6. e4 {[%emt 0:09:26]} Nf6 {[%emt 0:00:04]} 7. a4 {[%emt 0:01:25]} O-O {[%emt 0:01:00]} 8. Re1 {[%emt 0:00:13]} e5 {[%emt 0:04:58]} 9. Na3 {[%emt 0:03:09]} h6 {[%emt 0:00:46]} 10. Nc4 {[%emt 0:08:02]} Be6 {[%emt 0:02:04]} 11. Nfd2 {[%emt 0:07:10]} (11. Bd2 $5) 11... Qd7 {[%emt 0:00:41]} 12. c3 {[%emt 0:02:47]} Nh7 {[%emt 0:01:01]} 13. Nf1 {[%emt 0:12:46]} f5 {[%emt 0:01:12]} 14. exf5 {[%emt 0:00:05]} gxf5 {[%emt 0:00:05]} (14... Rxf5 $15 15. f4 Rff8) 15. f4 $11 {[%emt 0:02:06]} e4 {[%emt 0:03:21]} 16. Nce3 {[%emt 0:00:23]} d5 {[%emt 0:00:38]} 17. dxe4 {[%emt 0:04:57]} dxe4 {[%emt 0:02:51]} (17... fxe4 $11 18. f5 Bxf5 (18... Bf7 19. Ng4 $11) 19. Nxf5 (19. Nxd5 Rad8 $15) (19. Qxd5+ Qxd5 20. Nxd5 Rad8 $14) 19... Rxf5 (19... Qxf5 $2 20. Ne3 $18)) 18. Qxd7 $16 {[%emt 0:02:26]} Bxd7 {[%emt 0:00:01]} 19. a5 {[%emt 0:01:17]} Rad8 {[%emt 0:00:47]} 20. Nd2 {[%emt 0:03:53][%cal Og3g4,Bf1d2,Bd2c4,Bc4e3][%mdl 32]} Nf6 {[%emt 0:11:38]} 21. Bf1 {[%emt 0:06:33]} Be6 {[%emt 0:02:09]} 22. Bc4 {[%emt 0:00:29]} Bxc4 {[%emt 0:00:06]} 23. Ndxc4 {[%emt 0:00:21]} Nd5 {[%emt 0:00:47] [#]} 24. g4 {[%emt 0:07:51]} ({Better is} 24. Rd1 $1 $16 Nde7 25. Rd6) 24... fxg4 $11 {[%emt 0:00:47]} (24... Nxf4 25. Nxf5 Nd3 26. Rxe4 $18) 25. Nxd5 {[%emt 0:00:13]} Rxd5 {[%emt 0:00:02]} 26. Ne3 {[%emt 0:00:01]} Rd7 {[%emt 0:15:17]} 27. Nxg4 {[%emt 0:01:48][%cal Og1g2]} Bxc3 $1 {[%emt 0:02:07]} 28. Nxh6+ {[%emt 0:01:25]} Kh7 {[%emt 0:00:01]} 29. bxc3 {[%emt 0:00:07]} Kxh6 {[%emt 0:00:01]} 30. Ra4 {[%emt 0:04:09]} Rd3 {[%emt 0:07:26]} 31. a6 {[%emt 0:01:33]} (31. Rexe4 Rd1+ (31... Rxc3 32. Re6+ Kh5 33. Be3 $16) 32. Kg2 Rg8+ (32... Rxc1 $2 33. Re6+ Kh5 34. a6 $19) 33. Kf2 Rxc1 $19) 31... Rxc3 {[%emt 0:00:29] [#] Threatens to win with ...Nd4.} 32. Raxe4 {[%emt 0:01:30]} Nd4 {[%emt 0:00:45] Strongly threatening ...Nf3+.} ({Avoid the trap} 32... Rg8+ $2 33. Kh1 $18) 33. Bb2 {[%emt 0:02:28] Weighted Error Value: White=0.12 (very precise) /Black=0.10 (very precise) .  Mistake:       	White=1     	Black=2      Inaccurate:     	White=3     	Black=2      OK:         	White=13    	Black=14     Best:        	White=1     	Black=1      Strong:       	---       	Black=1} (33. axb7 $2 Nf3+ 34. Kh1 Nxe1 $19) 1/2-1/2

[Event "17th Paracin Open 2024"]
[Site "Paracin"]
[Date "2024.07.09"]
[Round "6.12"]
[White "Sedlak, Nikola"]
[Black "Manish Anto Cristiano F"]
[Result "0-1"]
[ECO "D45"]
[WhiteElo "2426"]
[BlackElo "2307"]
[Annotator "RC"]
[PlyCount "96"]
[EventDate "2024.07.02"]
[EventType "swiss"]
[EventCountry "SRB"]
[SourceTitle "playchess.com"]
[Source "ChessBase"]
[SourceQuality "1"]
[TimeControl "5400+30"]

1. Nf3 {[%emt 0:01:24]} d5 {[%emt 0:00:10]} 2. e3 {[%emt 0:00:18]} Nf6 {[%emt 0:00:15]} 3. c4 {[%emt 0:00:12]} c6 {[%emt 0:00:32]} 4. Nc3 {[%emt 0:00:54]} e6 {[%emt 0:00:28]} 5. d4 {[%emt 0:01:01]} Nbd7 {[%emt 0:00:15]} 6. Qc2 {[%emt 0:00:21]} Bd6 {[%emt 0:00:12]} 7. Be2 {[%emt 0:01:10]} O-O {[%emt 0:00:21]} 8. b3 {[%emt 0:00:28]} b6 {[%emt 0:00:51]} 9. O-O {[%emt 0:00:28]} Bb7 {[%emt 0:00:24]} 10. Bb2 {[%emt 0:00:58]} Qe7 {[%emt 0:00:29]} 11. Rfe1 {[%emt 0:00:32]} Rfe8 {[%emt 0:02:14]} 12. Rad1 {[%emt 0:01:08]} Rad8 {[%emt 0:00:10]} 13. Bf1 {[%emt 0:00:46]} c5 {[%emt 0:00:33]} 14. cxd5 {[%emt 0:00:20]} exd5 {[%emt 0:00:42]} 15. g3 {[%emt 0:05:43]} h6 {[%emt 0:00:12]} 16. Bg2 {[%emt 0:01:15]} Qe6 {[%emt 0:00:10]} 17. Qb1 {[%emt 0:00:43]} a6 {[%emt 0:00:24]} 18. a4 {[%emt 0:05:01]} Rc8 {[%emt 0:01:40]} 19. Qa1 {[%emt 0:10:35]} Bf8 {[%emt 0:06:02]} 20. a5 {[%emt 0:02:31]} b5 {[%emt 0:06:19]} 21. dxc5 {[%emt 0:00:19]} Nxc5 {[%emt 0:00:55]} 22. Nd4 {[%emt 0:01:04]} Qd7 {[%emt 0:01:32]} 23. Qb1 {[%emt 0:11:02]} b4 {[%emt 0:07:19]} 24. Nce2 {[%emt 0:05:08]} Nfe4 {[%emt 0:01:56]} 25. Nf4 {[%emt 0:01:48]} Qc7 {[%emt 0:14:23]} 26. Qa1 {[%emt 0:00:08]} Rcd8 {[%emt 0:00:54]} 27. Rc1 {[%emt 0:01:01]} Bc8 {[%emt 0:05:18]} 28. Rc2 {[%emt 0:03:20]} Qb7 {[%emt 0:03:04]} 29. Qd1 {[%emt 0:04:04]} Bd7 {[%emt 0:05:40]} 30. Nd3 {[%emt 0:03:22]} Ne6 {[%emt 0:04:57]} 31. Nxe6 {[%emt 0:00:47]} Bxe6 {[%emt 0:00:47]} 32. Qh5 {[%emt 0:09:31]} Rc8 {[%emt 0:06:07]} 33. Rxc8 {[%emt 0:00:48]} Rxc8 {[%emt 0:00:06]} 34. Nf4 {[%emt 0:01:49]} Rc2 {[%emt 0:02:44]} 35. Nxe6 {[%emt 0:01:01]} fxe6 {[%emt 0:00:50]} 36. Re2 {[%emt 0:01:14]} Qc7 {[%emt 0:02:04]} 37. Bf1 {[%emt 0:01:07]} Nd2 {[%emt 0:04:14]} 38. Be5 {[%emt 0:02:44]} Qc6 {[%emt 0:01:50]} 39. h4 {[%emt 0:15:51]} Nxf1 {[%emt 0:02:03]} 40. Rxc2 {[%emt 0:02:13]} Qxc2 {[%emt 0:00:09]} 41. Kxf1 {[%emt 0:00:13]} Qb1+ {[%emt 0:01:57]} 42. Ke2 {[%emt 0:00:12]} Qxb3 {[%emt 0:00:24]} 43. Qe8 {[%emt 0:01:09]} Qc2+ {[%emt 0:02:21]} 44. Ke1 {[%emt 0:02:27]} b3 {[%emt 0:11:42]} 45. Qxe6+ {[%emt 0:00:09]} Kh7 {[%emt 0:00:01]} 46. Qxa6 {[%emt 0:01:14]} Bb4+ {[%emt 0:01:07]} 47. Kf1 {[%emt 0:00:27]} Bc3 {[%emt 0:01:36]} 48. Bxc3 {[%emt 0:00:27]} Qxc3 {[%emt 0:00:02]} 0-1

[Event "17th Paracin Open 2024"]
[Site "Paracin"]
[Date "2024.07.09"]
[Round "6.13"]
[White "Arnav Maheshwari"]
[Black "Harsh Suresh"]
[Result "0-1"]
[ECO "E04"]
[WhiteElo "2290"]
[BlackElo "2426"]
[Annotator "ChessBase"]
[PlyCount "68"]
[EventDate "2024.07.02"]
[EventType "swiss"]
[EventCountry "SRB"]
[SourceTitle "playchess.com"]
[Source "ChessBase"]
[SourceQuality "1"]
[TimeControl "5400+30"]

1. d4 {[%emt 0:00:52]} d5 {[%emt 0:02:44]} 2. c4 {[%emt 0:00:16]} e6 {[%emt 0:00:15]} 3. Nf3 {[%emt 0:00:15]} Nf6 {[%emt 0:00:11]} 4. g3 {[%emt 0:00:10]} dxc4 {[%emt 0:00:32]} 5. Bg2 {[%emt 0:00:11]} a6 {[%emt 0:00:42]} 6. O-O {[%emt 0:00:13]} Nc6 {[%emt 0:00:14]} 7. Nbd2 {[%emt 0:00:15]} b5 {[%emt 0:01:07]} 8. b3 {[%emt 0:02:56]} c3 {[%emt 0:00:53]} 9. Nb1 {[%emt 0:00:10]} b4 {[%emt 0:00:15]} 10. a3 {[%emt 0:01:56]} Bb7 {[%emt 0:00:40]} 11. axb4 {[%emt 0:03:44]} Bxb4 {[%emt 0:04:52]} 12. e3 {[%emt 0:11:40]} Ne7 {[%emt 0:30:29]} 13. Ne5 {[%emt 0:06:57]} Bxg2 {[%emt 0:04:29]} 14. Kxg2 {[%emt 0:00:09]} c5 {[%emt 0:08:10]} 15. Nd3 {[%emt 0:04:20]} O-O {[%emt 0:05:24]} 16. Qc2 {[%emt 0:13:15]} Qd5+ {[%emt 0:07:05]} 17. f3 {[%emt 0:01:50]} Rfb8 {[%emt 0:06:01]} 18. dxc5 {[%emt 0:06:57]} Bxc5 {[%emt 0:03:30]} 19. Nxc5 {[%emt 0:17:21]} Qxc5 {[%emt 0:00:18]} 20. Ba3 {[%emt 0:00:13]} Qxe3 {[%emt 0:08:36]} 21. Bxe7 {[%emt 0:01:09]} Nd5 {[%emt 0:00:11]} 22. Ba3 {[%emt 0:01:28]} Rxb3 {[%emt 0:00:35]} 23. Kh1 {[%emt 0:06:50]} Rab8 {[%emt 0:03:07]} 24. Bd6 {[%emt 0:05:48]} R8b6 {[%emt 0:05:07]} 25. Rxa6 {[%emt 0:00:26]} Rxa6 {[%emt 0:01:11]} 26. Qxb3 {[%emt 0:00:07]} h6 {[%emt 0:01:01]} 27. Na3 {[%emt 0:08:44]} Qe2 {[%emt 0:02:30]} 28. Qb8+ {[%emt 0:01:15]} Kh7 {[%emt 0:00:02]} 29. Qb1+ {[%emt 0:00:10]} g6 {[%emt 0:00:31]} 30. Bc5 {[%emt 0:00:47]} Rxa3 {[%emt 0:01:26]} 31. Rf2 {[%emt 0:00:16]} c2 {[%emt 0:00:41]} 32. Qg1 {[%emt 0:00:46]} Qxf2 {[%emt 0:01:41]} 33. Bxf2 {[%emt 0:00:20]} Rd3 {[%emt 0:00:06]} 34. Be1 {[%emt 0:02:41]} c1=Q {[%emt 0:00:10]} 0-1

[Event "17th Paracin Open 2024"]
[Site "Paracin"]
[Date "2024.07.09"]
[Round "6.14"]
[White "Yilmaz, Baver"]
[Black "Djukic, Nikola"]
[Result "1/2-1/2"]
[ECO "B47"]
[WhiteElo "2259"]
[BlackElo "2532"]
[Annotator "RC"]
[PlyCount "146"]
[EventDate "2024.07.02"]
[EventType "swiss"]
[EventCountry "SRB"]
[SourceTitle "playchess.com"]
[Source "ChessBase"]
[SourceQuality "1"]
[TimeControl "5400+30"]

1. e4 {[%emt 0:03:04]} c5 {[%emt 0:00:09]} 2. Nf3 {[%emt 0:00:30]} e6 {[%emt 0:00:06]} 3. d4 {[%emt 0:00:46]} cxd4 {[%emt 0:00:07]} 4. Nxd4 {[%emt 0:00:06]} Nc6 {[%emt 0:00:06]} 5. Nc3 {[%emt 0:00:30]} Qc7 {[%emt 0:00:07]} 6. f4 {[%emt 0:01:09]} a6 {[%emt 0:00:31]} 7. Nxc6 {[%emt 0:00:19]} Qxc6 {[%emt 0:00:06]} 8. Bd3 {[%emt 0:00:20]} b5 {[%emt 0:00:27]} 9. Qe2 {[%emt 0:01:04]} Bb7 {[%emt 0:00:15]} 10. Bd2 {[%emt 0:00:37]} Bc5 {[%emt 0:00:55]} 11. O-O-O {[%emt 0:02:34]} Ne7 {[%emt 0:00:38]} 12. a3 {[%emt 0:02:18]} O-O {[%emt 0:00:42]} 13. Qh5 {[%emt 0:02:24]} b4 {[%emt 0:01:55]} 14. axb4 {[%emt 0:01:16]} Bxb4 {[%emt 0:00:06]} 15. Kb1 {[%emt 0:05:03]} a5 {[%emt 0:13:39]} 16. e5 {[%emt 0:04:40]} g6 {[%emt 0:08:43]} 17. Qh4 {[%emt 0:04:36]} Bxc3 {[%emt 0:02:25]} 18. Bxc3 {[%emt 0:01:04]} Nd5 {[%emt 0:00:04]} 19. Bd4 {[%emt 0:06:24]} Nb4 {[%emt 0:12:40]} 20. Rhe1 {[%emt 0:12:38]} Rfc8 {[%emt 0:56:49]} 21. c3 {[%emt 0:06:50]} Qa4 {[%emt 0:00:00]} 22. f5 {[%emt 0:02:48]} Qa2+ {[%emt 0:00:00]} 23. Kc1 {[%emt 0:01:13]} Qa1+ {[%emt 0:00:00]} 24. Bb1 {[%emt 0:02:23]} a4 {[%emt 0:00:00]} 25. Re3 {[%emt 0:14:17]} a3 {[%emt 0:00:00]} 26. bxa3 {[%emt 0:01:13]} Qxa3+ {[%emt 0:00:00]} 27. Kd2 {[%emt 0:00:54]} Qb2+ {[%emt 0:00:00]} 28. Ke1 {[%emt 0:00:45]} Nc2+ {[%emt 0:00:00]} 29. Bxc2 {[%emt 0:01:01]} Qxc2 {[%emt 0:00:00]} 30. fxg6 {[%emt 0:06:30]} fxg6 {[%emt 0:00:00]} 31. Re2 {[%emt 0:03:03]} Qb3 {[%emt 0:00:00]} 32. Rf2 {[%emt 0:05:17]} Rf8 {[%emt 0:00:00]} 33. Rf6 {[%emt 0:02:17]} Bxg2 {[%emt 0:00:00]} 34. Qg4 {[%emt 0:02:48]} Qc2 {[%emt 0:00:00]} 35. Qe2 {[%emt 0:00:30]} Qxe2+ {[%emt 0:00:00]} 36. Kxe2 {[%emt 0:01:52]} Rxf6 {[%emt 0:00:46]} 37. exf6 {[%emt 0:00:04]} Kf7 {[%emt 0:00:08]} 38. Bc5 {[%emt 0:02:46]} Bc6 {[%emt 0:03:14]} 39. Be7 {[%emt 0:00:30]} Ra5 {[%emt 0:00:30]} 40. Rd4 {[%emt 0:00:30]} Rf5 {[%emt 0:00:30]} 41. Rb4 {[%emt 0:00:30]} e5 {[%emt 0:00:30]} 42. Rb8 {[%emt 0:00:30]} Rh5 {[%emt 0:00:30]} 43. Rf8+ {[%emt 0:00:30]} Ke6 {[%emt 0:00:30]} 44. Rg8 {[%emt 0:00:30]} Rxh2+ {[%emt 0:01:18]} 45. Ke3 {[%emt 0:01:21]} Rh3+ {[%emt 0:00:30]} 46. Kd2 {[%emt 0:00:06]} e4 {[%emt 0:00:30]} 47. Rg7 {[%emt 0:00:30]} Bb5 {[%emt 0:00:30]} 48. Bd8 {[%emt 0:00:30]} e3+ {[%emt 0:01:56]} 49. Kc2 {[%emt 0:00:37]} Rf3 {[%emt 0:01:27]} 50. Rxh7 {[%emt 0:00:53]} e2 {[%emt 0:00:05]} 51. Re7+ {[%emt 0:00:25]} Kd5 {[%emt 0:01:02]} 52. c4+ {[%emt 0:01:15]} Bxc4 {[%emt 0:00:30]} 53. Rxd7+ {[%emt 0:00:00]} Kc6 {[%emt 0:00:21]} 54. Re7 {[%emt 0:00:23]} Rf1 {[%emt 0:00:13]} 55. Ba5 {[%emt 0:00:33]} Rxf6 {[%emt 0:00:06]} 56. Bc3 {[%emt 0:00:31]} Rf3 {[%emt 0:00:28]} 57. Bd2 {[%emt 0:00:28]} Kd5 {[%emt 0:00:36]} 58. Rd7+ {[%emt 0:00:27]} Ke6 {[%emt 0:00:16]} 59. Rd4 {[%emt 0:00:31]} Bb5 {[%emt 0:00:23]} 60. Be1 {[%emt 0:00:30]} Ra3 {[%emt 0:00:38]} 61. Rb4 {[%emt 0:00:33]} Ba6 {[%emt 0:00:25]} 62. Kb2 {[%emt 0:00:29]} Rd3 {[%emt 0:00:38]} 63. Re4+ {[%emt 0:00:29]} Kf5 {[%emt 0:00:21]} 64. Rxe2 {[%emt 0:00:28]} g5 {[%emt 0:00:30]} 65. Rf2+ {[%emt 0:00:18]} Kg6 {[%emt 0:00:20]} 66. Rd2 {[%emt 0:00:42]} Re3 {[%emt 0:00:16]} 67. Rd6+ {[%emt 0:00:18]} Kh5 {[%emt 0:00:12]} 68. Bd2 {[%emt 0:00:26]} Re2 {[%emt 0:00:07]} 69. Kc3 {[%emt 0:00:17]} Bb7 {[%emt 0:00:05]} 70. Rb6 {[%emt 0:00:28]} Bf3 {[%emt 0:00:10]} 71. Rb5 {[%emt 0:00:19]} Rg2 {[%emt 0:00:03]} 72. Rxg5+ {[%emt 0:00:10]} Rxg5 {[%emt 0:00:04]} 73. Bxg5 {[%emt 0:00:05]} Kxg5 {[%emt 0:00:04]} 1/2-1/2

[Event "17th Paracin Open 2024"]
[Site "Paracin"]
[Date "2024.07.09"]
[Round "6.15"]
[White "Apoorv Kamble"]
[Black "Bhattacharyya Soham"]
[Result "1/2-1/2"]
[ECO "B13"]
[WhiteElo "2369"]
[BlackElo "2477"]
[Annotator "RC"]
[PlyCount "63"]
[EventDate "2024.07.02"]
[EventType "swiss"]
[EventCountry "SRB"]
[SourceTitle "playchess.com"]
[Source "ChessBase"]
[SourceQuality "1"]
[TimeControl "5400+30"]

1. e4 {[%emt 0:00:15]} c6 {[%emt 0:00:45]} 2. d4 {[%emt 0:00:16]} d5 {[%emt 0:00:06]} 3. exd5 {[%emt 0:00:05]} cxd5 {[%emt 0:00:06]} 4. c4 {[%emt 0:00:03]} Nf6 {[%emt 0:01:26]} 5. Nc3 {[%emt 0:00:05]} Nc6 {[%emt 0:00:23]} 6. Nf3 {[%emt 0:00:05]} Bg4 {[%emt 0:03:42]} 7. cxd5 {[%emt 0:01:12]} Nxd5 {[%emt 0:00:10]} 8. Qb3 {[%emt 0:00:08]} Bxf3 {[%emt 0:01:34]} 9. gxf3 {[%emt 0:00:13]} e6 {[%emt 0:00:07]} 10. Qxb7 {[%emt 0:00:05]} Nxd4 {[%emt 0:00:10]} 11. Bb5+ {[%emt 0:00:05]} Nxb5 {[%emt 0:00:07]} 12. Qc6+ {[%emt 0:11:28]} Ke7 {[%emt 0:00:12]} 13. Qxb5 {[%emt 0:00:27]} Qd7 {[%emt 0:03:20]} 14. Nxd5+ {[%emt 0:00:29]} Qxd5 {[%emt 0:00:05]} 15. Bg5+ {[%emt 0:08:26]} f6 {[%emt 0:00:49]} 16. Qxd5 {[%emt 0:00:04]} exd5 {[%emt 0:00:06]} 17. Be3 {[%emt 0:00:05]} Kf7 {[%emt 0:21:37]} 18. O-O-O {[%emt 0:03:17]} Rd8 {[%emt 0:00:04]} 19. Rd3 {[%emt 0:18:28]} Rd7 {[%emt 0:07:03]} 20. Rhd1 {[%emt 0:00:30]} Ke6 {[%emt 0:00:15]} 21. Re1 {[%emt 0:04:46]} Kf7 {[%emt 0:04:02]} 22. Red1 {[%emt 0:00:23]} Ke6 {[%emt 0:00:07]} 23. Re1 {[%emt 0:09:57]} a6 {[%emt 0:25:46]} 24. Kb1 {[%emt 0:02:52]} Kf7 {[%emt 0:00:55]} 25. Rc1 {[%emt 0:05:05]} Be7 {[%emt 0:02:37]} 26. Rc6 {[%emt 0:04:00]} Ra8 {[%emt 0:00:07]} 27. a3 {[%emt 0:03:31]} a5 {[%emt 0:03:51]} 28. Rb6 {[%emt 0:06:15]} a4 {[%emt 0:02:01]} 29. Rb5 {[%emt 0:04:11]} Ke6 {[%emt 0:00:05]} 30. Rb6+ {[%emt 0:00:03]} Kf7 {[%emt 0:00:24]} 31. Rb5 {[%emt 0:00:09]} Ke6 {[%emt 0:00:11]} 32. Rb6+ {[%emt 0:01:12]} 1/2-1/2